Department Family,Entity,Payment Date,Expense Type,Expense Area,Supplier,Transaction Number,Amount,Invoice Description,Postal Code,Admin or Programme 
Food Standards Agency,Food Standards Agency,01/12/2011,Travel UK ,Chief Executive & Private Office,Capita Business Travel Ltd,LI342467,"1,057.22",CONSOLIDATED TRAVEL AND ACCOMMODATION 01/15 NOV 11,DE21 6BF,Admin
Food Standards Agency,Food Standards Agency,01/12/2011,Travel UK ,Chair & Deputy Chair,Capita Business Travel Ltd,LI342467,471.84,CONSOLIDATED TRAVEL AND ACCOMMODATION 01/15 NOV 11,DE21 6BF,Admin
Food Standards Agency,Food Standards Agency,01/12/2011,Travel UK ,FSA Board,Capita Business Travel Ltd,LI342467,"2,000.96",CONSOLIDATED TRAVEL AND ACCOMMODATION 01/15 NOV 11,DE21 6BF,Admin
Food Standards Agency,Food Standards Agency,01/12/2011,Travel UK ,Legal Branch A,Capita Business Travel Ltd,LI342467,462.44,CONSOLIDATED TRAVEL AND ACCOMMODATION 01/15 NOV 11,DE21 6BF,Admin
Food Standards Agency,Food Standards Agency,01/12/2011,Travel UK ,Investigations,Capita Business Travel Ltd,LI342467,88.30,CONSOLIDATED TRAVEL AND ACCOMMODATION 01/15 NOV 11,DE21 6BF,Admin
Food Standards Agency,Food Standards Agency,01/12/2011,Car hire expenses (short term),Investigations,Capita Business Travel Ltd,LI342467,-75.79,CONSOLIDATED TRAVEL AND ACCOMMODATION 01/15 NOV 11,DE21 6BF,Admin
Food Standards Agency,Food Standards Agency,01/12/2011,Travel UK ,Chief Scientist,Capita Business Travel Ltd,LI342467,434.90,CONSOLIDATED TRAVEL AND ACCOMMODATION 01/15 NOV 11,DE21 6BF,Admin
Food Standards Agency,Food Standards Agency,01/12/2011,International Travel,Chief Scientist,Capita Business Travel Ltd,LI342467,590.65,CONSOLIDATED TRAVEL AND ACCOMMODATION 01/15 NOV 11,DE21 6BF,Admin
Food Standards Agency,Food Standards Agency,01/12/2011,Travel UK ,Analysis & Research Branch,Capita Business Travel Ltd,LI342467,282.00,CONSOLIDATED TRAVEL AND ACCOMMODATION 01/15 NOV 11,DE21 6BF,Admin
Food Standards Agency,Food Standards Agency,01/12/2011,International Travel,Analysis & Research Branch,Capita Business Travel Ltd,LI342467,453.66,CONSOLIDATED TRAVEL AND ACCOMMODATION 01/15 NOV 11,DE21 6BF,Admin
Food Standards Agency,Food Standards Agency,01/12/2011,Travel UK ,Comms Directors Office,Capita Business Travel Ltd,LI342467,405.70,CONSOLIDATED TRAVEL AND ACCOMMODATION 01/15 NOV 11,DE21 6BF,Admin
Food Standards Agency,Food Standards Agency,01/12/2011,Travel UK ,Comms Directors Office,Capita Business Travel Ltd,LI342467,133.90,CONSOLIDATED TRAVEL AND ACCOMMODATION 01/15 NOV 11,DE21 6BF,Admin
Food Standards Agency,Food Standards Agency,01/12/2011,Travel UK ,Business Continuity,Capita Business Travel Ltd,LI342467,627.60,CONSOLIDATED TRAVEL AND ACCOMMODATION 01/15 NOV 11,DE21 6BF,Programme
Food Standards Agency,Food Standards Agency,01/12/2011,Travel UK ,FSA Operations Director & Support,Capita Business Travel Ltd,LI342467,71.73,CONSOLIDATED TRAVEL AND ACCOMMODATION 01/15 NOV 11,DE21 6BF,Programme
Food Standards Agency,Food Standards Agency,01/12/2011,Travel UK ,FSA Operations Vet Tec,Capita Business Travel Ltd,LI342467,"1,250.55",CONSOLIDATED TRAVEL AND ACCOMMODATION 01/15 NOV 11,DE21 6BF,Programme
Food Standards Agency,Food Standards Agency,01/12/2011,Car hire expenses (short term),FSA Operations Vet Tec,Capita Business Travel Ltd,LI342467,396.11,CONSOLIDATED TRAVEL AND ACCOMMODATION 01/15 NOV 11,DE21 6BF,Programme
Food Standards Agency,Food Standards Agency,01/12/2011,Travel UK ,LAALD HoD & Support,Capita Business Travel Ltd,LI342467,"3,299.90",CONSOLIDATED TRAVEL AND ACCOMMODATION 01/15 NOV 11,DE21 6BF,Admin
Food Standards Agency,Food Standards Agency,01/12/2011,Car hire expenses (short term),LAALD HoD & Support,Capita Business Travel Ltd,LI342467,220.52,CONSOLIDATED TRAVEL AND ACCOMMODATION 01/15 NOV 11,DE21 6BF,Admin
Food Standards Agency,Food Standards Agency,01/12/2011,Travel UK ,Incidents & Food Fraud,Capita Business Travel Ltd,LI342467,23.90,CONSOLIDATED TRAVEL AND ACCOMMODATION 01/15 NOV 11,DE21 6BF,Admin
Food Standards Agency,Food Standards Agency,01/12/2011,Travel UK ,Delivery,Capita Business Travel Ltd,LI342467,"3,108.83",CONSOLIDATED TRAVEL AND ACCOMMODATION 01/15 NOV 11,DE21 6BF,Admin
Food Standards Agency,Food Standards Agency,01/12/2011,Car hire expenses (short term),Delivery,Capita Business Travel Ltd,LI342467,59.71,CONSOLIDATED TRAVEL AND ACCOMMODATION 01/15 NOV 11,DE21 6BF,Admin
Food Standards Agency,Food Standards Agency,01/12/2011,Travel UK ,Enforcement Policy,Capita Business Travel Ltd,LI342467,245.30,CONSOLIDATED TRAVEL AND ACCOMMODATION 01/15 NOV 11,DE21 6BF,Admin
Food Standards Agency,Food Standards Agency,01/12/2011,International Travel,Official Controls & Enforcement Strategy,Capita Business Travel Ltd,LI342467,254.46,CONSOLIDATED TRAVEL AND ACCOMMODATION 01/15 NOV 11,DE21 6BF,Admin
Food Standards Agency,Food Standards Agency,01/12/2011,Travel UK ,FSA Ops Delivery Planning Unit,Capita Business Travel Ltd,LI342467,"5,004.20",CONSOLIDATED TRAVEL AND ACCOMMODATION 01/15 NOV 11,DE21 6BF,Programme
Food Standards Agency,Food Standards Agency,01/12/2011,Travel UK ,Chemical Risk Assessment Unit,Capita Business Travel Ltd,LI342467,494.90,CONSOLIDATED TRAVEL AND ACCOMMODATION 01/15 NOV 11,DE21 6BF,Admin
Food Standards Agency,Food Standards Agency,01/12/2011,International Travel,Chemical Risk Assessment Unit,Capita Business Travel Ltd,LI342467,174.75,CONSOLIDATED TRAVEL AND ACCOMMODATION 01/15 NOV 11,DE21 6BF,Admin
Food Standards Agency,Food Standards Agency,01/12/2011,International Travel,Contaminants Policy & Strategy Unit,Capita Business Travel Ltd,LI342467,560.50,CONSOLIDATED TRAVEL AND ACCOMMODATION 01/15 NOV 11,DE21 6BF,Admin
Food Standards Agency,Food Standards Agency,01/12/2011,International Travel,Novel Food Unit,Capita Business Travel Ltd,LI342467,293.75,CONSOLIDATED TRAVEL AND ACCOMMODATION 01/15 NOV 11,DE21 6BF,Admin
Food Standards Agency,Food Standards Agency,01/12/2011,Travel UK ,Hygiene & Microbiology Division HoD,Capita Business Travel Ltd,LI342467,90.70,CONSOLIDATED TRAVEL AND ACCOMMODATION 01/15 NOV 11,DE21 6BF,Admin
Food Standards Agency,Food Standards Agency,01/12/2011,International Travel,Hygiene & Microbiology Division HoD,Capita Business Travel Ltd,LI342467,263.75,CONSOLIDATED TRAVEL AND ACCOMMODATION 01/15 NOV 11,DE21 6BF,Admin
Food Standards Agency,Food Standards Agency,01/12/2011,Travel UK ,Microbiological Food Safety Branch,Capita Business Travel Ltd,LI342467,236.20,CONSOLIDATED TRAVEL AND ACCOMMODATION 01/15 NOV 11,DE21 6BF,Admin
Food Standards Agency,Food Standards Agency,01/12/2011,International Travel,Microbiological Food Safety Branch,Capita Business Travel Ltd,LI342467,218.75,CONSOLIDATED TRAVEL AND ACCOMMODATION 01/15 NOV 11,DE21 6BF,Admin
Food Standards Agency,Food Standards Agency,01/12/2011,Travel UK ,Food Production Branch,Capita Business Travel Ltd,LI342467,398.98,CONSOLIDATED TRAVEL AND ACCOMMODATION 01/15 NOV 11,DE21 6BF,Admin
Food Standards Agency,Food Standards Agency,01/12/2011,Travel UK ,EU Regulatory Reform Branch,Capita Business Travel Ltd,LI342467,117.70,CONSOLIDATED TRAVEL AND ACCOMMODATION 01/15 NOV 11,DE21 6BF,Admin
Food Standards Agency,Food Standards Agency,01/12/2011,Travel UK ,Food Hygiene Policy Branch,Capita Business Travel Ltd,LI342467,48.80,CONSOLIDATED TRAVEL AND ACCOMMODATION 01/15 NOV 11,DE21 6BF,Admin
Food Standards Agency,Food Standards Agency,01/12/2011,Travel UK ,Meat & Hygiene & TSE Policy Branch,Capita Business Travel Ltd,LI342467,79.80,CONSOLIDATED TRAVEL AND ACCOMMODATION 01/15 NOV 11,DE21 6BF,Admin
Food Standards Agency,Food Standards Agency,01/12/2011,International Travel,Foodborne Diseases Branch,Capita Business Travel Ltd,LI342467,219.00,CONSOLIDATED TRAVEL AND ACCOMMODATION 01/15 NOV 11,DE21 6BF,Admin
Food Standards Agency,Food Standards Agency,01/12/2011,International Travel,Animal Feed Branch,Capita Business Travel Ltd,LI342467,602.33,CONSOLIDATED TRAVEL AND ACCOMMODATION 01/15 NOV 11,DE21 6BF,Admin
Food Standards Agency,Food Standards Agency,01/12/2011,Travel UK ,Allergens,Capita Business Travel Ltd,LI342467,16.50,CONSOLIDATED TRAVEL AND ACCOMMODATION 01/15 NOV 11,DE21 6BF,Admin
Food Standards Agency,Food Standards Agency,01/12/2011,International Travel,Allergens,Capita Business Travel Ltd,LI342467,178.75,CONSOLIDATED TRAVEL AND ACCOMMODATION 01/15 NOV 11,DE21 6BF,Admin
Food Standards Agency,Food Standards Agency,01/12/2011,International Travel,Additives,Capita Business Travel Ltd,LI342467,794.25,CONSOLIDATED TRAVEL AND ACCOMMODATION 01/15 NOV 11,DE21 6BF,Admin
Food Standards Agency,Food Standards Agency,01/12/2011,Travel UK ,Food Policy Strategy HoD,Capita Business Travel Ltd,LI342467,785.40,CONSOLIDATED TRAVEL AND ACCOMMODATION 01/15 NOV 11,DE21 6BF,Admin
Food Standards Agency,Food Standards Agency,01/12/2011,Car hire expenses (short term),Food Policy Strategy HoD,Capita Business Travel Ltd,LI342467,437.93,CONSOLIDATED TRAVEL AND ACCOMMODATION 01/15 NOV 11,DE21 6BF,Admin
Food Standards Agency,Food Standards Agency,01/12/2011,Travel UK ,Planning and Performance,Capita Business Travel Ltd,LI342467,717.80,CONSOLIDATED TRAVEL AND ACCOMMODATION 01/15 NOV 11,DE21 6BF,Admin
Food Standards Agency,Food Standards Agency,01/12/2011,Travel UK ,Food Policy Private Office,Capita Business Travel Ltd,LI342467,685.90,CONSOLIDATED TRAVEL AND ACCOMMODATION 01/15 NOV 11,DE21 6BF,Admin
Food Standards Agency,Food Standards Agency,01/12/2011,International Travel,Food Policy Private Office,Capita Business Travel Ltd,LI342467,576.25,CONSOLIDATED TRAVEL AND ACCOMMODATION 01/15 NOV 11,DE21 6BF,Admin
Food Standards Agency,Food Standards Agency,01/12/2011,Travel UK ,Finance Director & Branch,Capita Business Travel Ltd,LI342467,"2,620.40",CONSOLIDATED TRAVEL AND ACCOMMODATION 01/15 NOV 11,DE21 6BF,Admin
Food Standards Agency,Food Standards Agency,01/12/2011,Car hire expenses (short term),Finance Director & Branch,Capita Business Travel Ltd,LI342467,175.15,CONSOLIDATED TRAVEL AND ACCOMMODATION 01/15 NOV 11,DE21 6BF,Admin
Food Standards Agency,Food Standards Agency,01/12/2011,Travel UK ,HR,Capita Business Travel Ltd,LI342467,"4,309.10",CONSOLIDATED TRAVEL AND ACCOMMODATION 01/15 NOV 11,DE21 6BF,Admin
Food Standards Agency,Food Standards Agency,01/12/2011,Car hire expenses (short term),HR,Capita Business Travel Ltd,LI342467,386.20,CONSOLIDATED TRAVEL AND ACCOMMODATION 01/15 NOV 11,DE21 6BF,Admin
Food Standards Agency,Food Standards Agency,01/12/2011,Travel UK ,Procurement,Capita Business Travel Ltd,LI342467,"2,260.06",CONSOLIDATED TRAVEL AND ACCOMMODATION 01/15 NOV 11,DE21 6BF,Admin
Food Standards Agency,Food Standards Agency,01/12/2011,Travel UK ,IT HoD,Capita Business Travel Ltd,LI342467,"4,332.25",CONSOLIDATED TRAVEL AND ACCOMMODATION 01/15 NOV 11,DE21 6BF,Admin
Food Standards Agency,Food Standards Agency,01/12/2011,Car hire expenses (short term),IT HoD,Capita Business Travel Ltd,LI342467,126.13,CONSOLIDATED TRAVEL AND ACCOMMODATION 01/15 NOV 11,DE21 6BF,Admin
Food Standards Agency,Food Standards Agency,01/12/2011,IT equipment maintenance,IT Service Delivery,E S R I (UK) Ltd,110538,"32,140.00",PO 405579 LICENCE ARCGIS SERVER PERIOD TO 30/11/12,HP21 7QG,Admin
Food Standards Agency,Food Standards Agency,01/12/2011,IT equipment maintenance,IT Service Delivery,E S R I (UK) Ltd,110538,"6,428.00",PO 405579 LICENCE ARCGIS SERVER PERIOD TO 30/11/12,HP21 7QG,Admin
Food Standards Agency,Food Standards Agency,01/12/2011,Travel UK ,IT Service Delivery,Capita Business Travel Ltd,LI342467,369.24,CONSOLIDATED TRAVEL AND ACCOMMODATION 01/15 NOV 11,DE21 6BF,Admin
Food Standards Agency,Food Standards Agency,01/12/2011,Service charges,Security & Estates,G4s Integrated Services (Uk) Ltd,M4969,"26,138.27",PO 402962 SERVICE PROVISION ON CONTRACT PAU229 OCTOBER 2011,S81 7QF,Admin
Food Standards Agency,Food Standards Agency,01/12/2011,Service charges,Security & Estates,G4s Integrated Services (Uk) Ltd,M4969,"15,150.81",PO 402962 SERVICE PROVISION ON CONTRACT PAU229 OCTOBER 2011,S81 7QF,Admin
Food Standards Agency,Food Standards Agency,01/12/2011,Service charges,Security & Estates,G4s Integrated Services (Uk) Ltd,M4969,"2,760.55",PO 402962 SERVICE PROVISION ON CONTRACT PAU229 OCTOBER 2011,S81 7QF,Admin
Food Standards Agency,Food Standards Agency,01/12/2011,Office machinery: hire,Security & Estates,G4s Integrated Services (Uk) Ltd,M4969,"3,244.00",PO 402962 SERVICE PROVISION ON CONTRACT PAU229 OCTOBER 2011,S81 7QF,Admin
Food Standards Agency,Food Standards Agency,01/12/2011,Security,Security & Estates,G4s Integrated Services (Uk) Ltd,M4969,"17,623.33",PO 402962 SERVICE PROVISION ON CONTRACT PAU229 OCTOBER 2011,S81 7QF,Admin
Food Standards Agency,Food Standards Agency,01/12/2011,Travel UK ,Internal Audit,Capita Business Travel Ltd,LI342467,295.40,CONSOLIDATED TRAVEL AND ACCOMMODATION 01/15 NOV 11,DE21 6BF,Admin
Food Standards Agency,Food Standards Agency,01/12/2011,Car hire expenses (short term),FSA Ops Cluster 2,Capita Business Travel Ltd,LI342467,218.40,CONSOLIDATED TRAVEL AND ACCOMMODATION 01/15 NOV 11,DE21 6BF,Programme
Food Standards Agency,Food Standards Agency,01/12/2011,Travel UK ,FSA Ops Cluster 6,Capita Business Travel Ltd,LI342467,108.20,CONSOLIDATED TRAVEL AND ACCOMMODATION 01/15 NOV 11,DE21 6BF,Programme
Food Standards Agency,Food Standards Agency,01/12/2011,Travel UK ,FSA Ops Cluster 10,Capita Business Travel Ltd,LI342467,202.10,CONSOLIDATED TRAVEL AND ACCOMMODATION 01/15 NOV 11,DE21 6BF,Programme
Food Standards Agency,Food Standards Agency,01/12/2011,Travel UK ,FSA Ops Cluster 11,Capita Business Travel Ltd,LI342467,372.60,CONSOLIDATED TRAVEL AND ACCOMMODATION 01/15 NOV 11,DE21 6BF,Programme
Food Standards Agency,Food Standards Agency,01/12/2011,Travel UK ,FSA Ops Cluster 13,Capita Business Travel Ltd,LI342467,258.30,CONSOLIDATED TRAVEL AND ACCOMMODATION 01/15 NOV 11,DE21 6BF,Programme
Food Standards Agency,Food Standards Agency,01/12/2011,Travel UK ,FSA Ops Cluster 15,Capita Business Travel Ltd,LI342467,38.40,CONSOLIDATED TRAVEL AND ACCOMMODATION 01/15 NOV 11,DE21 6BF,Programme
Food Standards Agency,Food Standards Agency,01/12/2011,Travel UK ,FSA Ops Cluster 20,Capita Business Travel Ltd,LI342467,112.00,CONSOLIDATED TRAVEL AND ACCOMMODATION 01/15 NOV 11,DE21 6BF,Programme
Food Standards Agency,Food Standards Agency,01/12/2011,Travel UK ,FSA Ops Cluster 25,Capita Business Travel Ltd,LI342467,-131.90,CONSOLIDATED TRAVEL AND ACCOMMODATION 01/15 NOV 11,DE21 6BF,Programme
Food Standards Agency,Food Standards Agency,01/12/2011,Travel UK ,FSA Ops Cluster 27,Capita Business Travel Ltd,LI342467,60.00,CONSOLIDATED TRAVEL AND ACCOMMODATION 01/15 NOV 11,DE21 6BF,Programme
Food Standards Agency,Food Standards Agency,01/12/2011,Travel UK ,FSA Ops Cluster 28,Capita Business Travel Ltd,LI342467,107.40,CONSOLIDATED TRAVEL AND ACCOMMODATION 01/15 NOV 11,DE21 6BF,Programme
Food Standards Agency,Food Standards Agency,01/12/2011,Travel UK ,FSA Ops Cluster 30,Capita Business Travel Ltd,LI342467,308.90,CONSOLIDATED TRAVEL AND ACCOMMODATION 01/15 NOV 11,DE21 6BF,Programme
Food Standards Agency,Food Standards Agency,01/12/2011,Travel UK ,FSA Ops Cluster 32,Capita Business Travel Ltd,LI342467,94.40,CONSOLIDATED TRAVEL AND ACCOMMODATION 01/15 NOV 11,DE21 6BF,Programme
Food Standards Agency,Food Standards Agency,01/12/2011,Travel UK ,FSA Ops Cluster 37,Capita Business Travel Ltd,LI342467,104.30,CONSOLIDATED TRAVEL AND ACCOMMODATION 01/15 NOV 11,DE21 6BF,Programme
Food Standards Agency,Food Standards Agency,05/12/2011,Project Programme expenditure,Comms Directors Office,Alterian,FTIT00848,"25,000.00",PO 404615 ANNUAL MAINTENANCE & SUPPORT 11/12/11 TO 10/12/12,BS1 3LG,Programme
Food Standards Agency,Food Standards Agency,05/12/2011,Project Programme expenditure,Comms Directors Office,Alterian,FTIT00848,"5,000.00",PO 404615 ANNUAL MAINTENANCE & SUPPORT 11/12/11 TO 10/12/12,BS1 3LG,Programme
Food Standards Agency,Food Standards Agency,05/12/2011,Programme Evidence & Research Expenditure,Contaminants Policy & Strategy Unit,Food & Environment Research Agency,F0018931,"52,917.00",PO 402040 AN INVESTIGATION INTO THE OCCURRENCE IN FOOD OF CHEMICALS,YO41 1LZ,Programme
Food Standards Agency,Food Standards Agency,07/12/2011,Project Programme expenditure,Enforcement Policy,Transparencydata Ltd,1461,"25,000.00",PO 404426 SERVICES AGREEMENT 31/8/11,HP18 9AA,Programme
Food Standards Agency,Food Standards Agency,07/12/2011,Project Programme expenditure,Enforcement Policy,Transparencydata Ltd,1461,"5,000.00",PO 404426 SERVICES AGREEMENT 31/8/11,HP18 9AA,Programme
Food Standards Agency,Food Standards Agency,07/12/2011,Office machinery: hire,IT Service Delivery,The Danwood Group Ltd,2931571,"26,410.00",PO 402138 QUARTERLY RENTAL CHGS FM 22/11/11 TO 21/2/12,LN6 3DG,Admin
Food Standards Agency,Food Standards Agency,07/12/2011,Office machinery: hire,IT Service Delivery,The Danwood Group Ltd,2931571,"5,282.00",PO 402138 QUARTERLY RENTAL CHGS FM 22/11/11 TO 21/2/12,LN6 3DG,Admin
Food Standards Agency,Food Standards Agency,09/12/2011,Rates/contrib in lieu of rates,Security & Estates,London Borough Of Camden,68351658DEC11,"71,846.00",PO 402865 RENT FOR BST - 3RD FLOOR AVIATION HOUSE LONDON FROM 1/4/11 TO 31/3/12,WC1H 8NH,Admin
Food Standards Agency,Food Standards Agency,09/12/2011,Utilities,Security & Estates,E D F Energy,138,"29,450.35",PO 402591 ELECTRICITY BILL FROM 1/11/11 TO 30/11/11,EX1 3UT,Admin
Food Standards Agency,Food Standards Agency,09/12/2011,Utilities,Security & Estates,E D F Energy,138,"5,890.07",PO 402591 ELECTRICITY BILL FROM 1/11/11 TO 30/11/11,EX1 3UT,Admin
Food Standards Agency,Food Standards Agency,13/12/2011,Project Programme expenditure,Comms Directors Office,L B I Ltd,301417433,"29,631.88",PO 403438 FSA 016-01 2009 SUPPORT & MAINT,E1 6RU,Programme
Food Standards Agency,Food Standards Agency,13/12/2011,Project Programme expenditure,Comms Directors Office,L B I Ltd,301417433,"5,926.38",PO 403438 FSA 016-01 2009 SUPPORT & MAINT,E1 6RU,Programme
Food Standards Agency,Food Standards Agency,13/12/2011,Project Programme expenditure,Enforcement Policy,Coi,738052,"47,625.00",PO405713 RESEARCH COMPANY COSTS,SE1 7DU,Programme
Food Standards Agency,Food Standards Agency,13/12/2011,ASD support services,Finance Director & Branch,DEFRA,1000009714,"95,100.00",PO 402861 QUARTERLY CHARGING FOR EXTERNAL AGENCIES SSD SERVICE DELIVERY,YO1 7PX,Admin
Food Standards Agency,Food Standards Agency,13/12/2011,ASD support services,Finance Director & Branch,DEFRA,1000009714,"19,020.00",PO 402861 QUARTERLY CHARGING FOR EXTERNAL AGENCIES SSD SERVICE DELIVERY,YO1 7PX,Admin
Food Standards Agency,Food Standards Agency,13/12/2011,Special payments & compensation,HR,Treasury Solicitor,30-NOV-2011,"100,000.00",TREASURY LEGAL COSTS RELATING TO COMPENSATION CLAIM ,WC2B 4TS,Admin
Food Standards Agency,Food Standards Agency,13/12/2011,Telecomms-data networks & call charges,IT Service Delivery,Cable & Wireless Communications,UK101020116706,"29,143.12",PO 404349 PHONE CALLS UNTIL JAN 12,MK3 5JP,Admin
Food Standards Agency,Food Standards Agency,13/12/2011,Telecomms-data networks & call charges,IT Service Delivery,Cable & Wireless Communications,UK101020116706,"5,828.62",PO 404349 PHONE CALLS UNTIL JAN 12,MK3 5JP,Admin
Food Standards Agency,Food Standards Agency,15/12/2011,Publicity charges,Web & Editorial,Creative Choice CIC,3,"21,840.00",PO 404366 FOOD.GOV REDESIGN JOB 007,SW1H 0DJ,Admin
Food Standards Agency,Food Standards Agency,15/12/2011,Publicity charges,Web & Editorial,Creative Choice CIC,3,"4,368.00",PO 404366 FOOD.GOV REDESIGN JOB 007,SW1H 0DJ,Admin
Food Standards Agency,Food Standards Agency,15/12/2011,Laundry,FSA Ops Delivery Planning Unit,Apparelmaster UK Ltd,40734,"28,926.39",PO 402915 LAUNDRY PERIOD 30/10/11 TO 26/11/11,PR2 9ZD,Programme
Food Standards Agency,Food Standards Agency,15/12/2011,Laundry,FSA Ops Delivery Planning Unit,Apparelmaster UK Ltd,40734,149.62,PO 402915 LAUNDRY PERIOD 30/10/11 TO 26/11/11,PR2 9ZD,Programme
Food Standards Agency,Food Standards Agency,15/12/2011,Programme Evidence & Research Expenditure,Chemical Risk Assessment Unit,Imperial College,10089910,"35,191.00",PO 400535 RESEARCH COSTS,SW7 2AZ,Programme
Food Standards Agency,Food Standards Agency,15/12/2011,Programme Evidence & Research Expenditure,Contaminants Policy & Strategy Unit,Smithers Rapra Technology Ltd,RINV00098470,"23,000.00",PO 402532 THIRD INVOICE FOR FSA RESEARCH PROJECT,SY4 4NR,Programme
Food Standards Agency,Food Standards Agency,15/12/2011,Programme Evidence & Research Expenditure,Contaminants Policy & Strategy Unit,Smithers Rapra Technology Ltd,RINV00098470,"4,600.00",PO 402532 THIRD INVOICE FOR FSA RESEARCH PROJECT,SY4 4NR,Programme
Food Standards Agency,Food Standards Agency,19/12/2011,Travel UK ,Chief Executive & Private Office,Capita Business Travel Ltd,LI348559,11.02,CONSOLIDATED INVOICE - NOV 2011 TRAVEL AND ACCOMMODATION 16 TO 30 NOV11,DE21 6BF,Admin
Food Standards Agency,Food Standards Agency,19/12/2011,Travel UK ,Chair & Deputy Chair,Capita Business Travel Ltd,LI348559,156.90,CONSOLIDATED INVOICE - NOV 2011 TRAVEL AND ACCOMMODATION 16 TO 30 NOV11,DE21 6BF,Admin
Food Standards Agency,Food Standards Agency,19/12/2011,Travel UK ,FSA Board,Capita Business Travel Ltd,LI348559,267.92,CONSOLIDATED INVOICE - NOV 2011 TRAVEL AND ACCOMMODATION 16 TO 30 NOV11,DE21 6BF,Admin
Food Standards Agency,Food Standards Agency,19/12/2011,Travel UK ,Legal Branch A,Capita Business Travel Ltd,LI348559,136.10,CONSOLIDATED INVOICE - NOV 2011 TRAVEL AND ACCOMMODATION 16 TO 30 NOV11,DE21 6BF,Admin
Food Standards Agency,Food Standards Agency,19/12/2011,International Travel,Legal Branch A,Capita Business Travel Ltd,LI348559,143.75,CONSOLIDATED INVOICE - NOV 2011 TRAVEL AND ACCOMMODATION 16 TO 30 NOV11,DE21 6BF,Admin
Food Standards Agency,Food Standards Agency,19/12/2011,Travel UK ,Investigations,Capita Business Travel Ltd,LI348559,480.04,CONSOLIDATED INVOICE - NOV 2011 TRAVEL AND ACCOMMODATION 16 TO 30 NOV11,DE21 6BF,Admin
Food Standards Agency,Food Standards Agency,19/12/2011,Travel UK ,Chief Scientist,Capita Business Travel Ltd,LI348559,298.00,CONSOLIDATED INVOICE - NOV 2011 TRAVEL AND ACCOMMODATION 16 TO 30 NOV11,DE21 6BF,Admin
Food Standards Agency,Food Standards Agency,19/12/2011,International Travel,Chief Scientist,Capita Business Travel Ltd,LI348559,39.00,CONSOLIDATED INVOICE - NOV 2011 TRAVEL AND ACCOMMODATION 16 TO 30 NOV11,DE21 6BF,Admin
Food Standards Agency,Food Standards Agency,19/12/2011,Travel UK ,Analysis & Research Branch,Capita Business Travel Ltd,LI348559,224.30,CONSOLIDATED INVOICE - NOV 2011 TRAVEL AND ACCOMMODATION 16 TO 30 NOV11,DE21 6BF,Admin
Food Standards Agency,Food Standards Agency,19/12/2011,Travel UK ,Comms Directors Office,Capita Business Travel Ltd,LI348559,909.80,CONSOLIDATED INVOICE - NOV 2011 TRAVEL AND ACCOMMODATION 16 TO 30 NOV11,DE21 6BF,Admin
Food Standards Agency,Food Standards Agency,19/12/2011,Travel UK ,Comms Directors Office,Capita Business Travel Ltd,LI348559,144.90,CONSOLIDATED INVOICE - NOV 2011 TRAVEL AND ACCOMMODATION 16 TO 30 NOV11,DE21 6BF,Admin
Food Standards Agency,Food Standards Agency,19/12/2011,International Travel,Comms Directors Office,Capita Business Travel Ltd,LI348559,221.79,CONSOLIDATED INVOICE - NOV 2011 TRAVEL AND ACCOMMODATION 16 TO 30 NOV11,DE21 6BF,Admin
Food Standards Agency,Food Standards Agency,19/12/2011,Travel UK ,FSA Operations Director & Support,Capita Business Travel Ltd,LI348559,52.40,CONSOLIDATED INVOICE - NOV 2011 TRAVEL AND ACCOMMODATION 16 TO 30 NOV11,DE21 6BF,Programme
Food Standards Agency,Food Standards Agency,19/12/2011,Travel UK ,FSA Operations Vet Tec,Capita Business Travel Ltd,LI348559,"1,083.22",CONSOLIDATED INVOICE - NOV 2011 TRAVEL AND ACCOMMODATION 16 TO 30 NOV11,DE21 6BF,Programme
Food Standards Agency,Food Standards Agency,19/12/2011,Travel UK ,LAALD HoD & Support,Capita Business Travel Ltd,LI348559,"3,037.00",CONSOLIDATED INVOICE - NOV 2011 TRAVEL AND ACCOMMODATION 16 TO 30 NOV11,DE21 6BF,Admin
Food Standards Agency,Food Standards Agency,19/12/2011,Travel UK ,Delivery,Capita Business Travel Ltd,LI348559,"2,464.50",CONSOLIDATED INVOICE - NOV 2011 TRAVEL AND ACCOMMODATION 16 TO 30 NOV11,DE21 6BF,Admin
Food Standards Agency,Food Standards Agency,19/12/2011,Travel UK ,Enforcement Policy,Capita Business Travel Ltd,LI348559,245.10,CONSOLIDATED INVOICE - NOV 2011 TRAVEL AND ACCOMMODATION 16 TO 30 NOV11,DE21 6BF,Admin
Food Standards Agency,Food Standards Agency,19/12/2011,Travel UK ,Official Controls & Enforcement Strategy,Capita Business Travel Ltd,LI348559,16.40,CONSOLIDATED INVOICE - NOV 2011 TRAVEL AND ACCOMMODATION 16 TO 30 NOV11,DE21 6BF,Admin
Food Standards Agency,Food Standards Agency,19/12/2011,Travel UK ,FSA Ops Delivery Planning Unit,Capita Business Travel Ltd,LI348559,"3,253.62",CONSOLIDATED INVOICE - NOV 2011 TRAVEL AND ACCOMMODATION 16 TO 30 NOV11,DE21 6BF,Programme
Food Standards Agency,Food Standards Agency,19/12/2011,Subsistence - Hospitality ,FSA Ops Delivery Planning Unit,Capita Business Travel Ltd,LI348559,91.30,CONSOLIDATED INVOICE - NOV 2011 TRAVEL AND ACCOMMODATION 16 TO 30 NOV11,DE21 6BF,Programme
Food Standards Agency,Food Standards Agency,19/12/2011,International Travel,Chemical Risk Assessment Unit,Capita Business Travel Ltd,LI348559,-49.00,CONSOLIDATED INVOICE - NOV 2011 TRAVEL AND ACCOMMODATION 16 TO 30 NOV11,DE21 6BF,Admin
Food Standards Agency,Food Standards Agency,19/12/2011,Project Programme expenditure,Contaminants Policy & Strategy Unit,Food & Environment Research Agency,F0019334,"80,700.00",PO404231 INVOICE FOR SERVICES UP TO END OF SEPTEMBER 11 (PAU26),YO41 1LZ,Programme
Food Standards Agency,Food Standards Agency,19/12/2011,Project Programme expenditure,Contaminants Policy & Strategy Unit,Food & Environment Research Agency,F0019334,"16,140.00",PO404231 INVOICE FOR SERVICES UP TO END OF SEPTEMBER 11 (PAU26),YO41 1LZ,Programme
Food Standards Agency,Food Standards Agency,19/12/2011,Travel UK ,Contaminants Policy & Strategy Unit,Capita Business Travel Ltd,LI348559,271.15,CONSOLIDATED INVOICE - NOV 2011 TRAVEL AND ACCOMMODATION 16 TO 30 NOV11,DE21 6BF,Admin
Food Standards Agency,Food Standards Agency,19/12/2011,International Travel,Contaminants Policy & Strategy Unit,Capita Business Travel Ltd,LI348559,248.75,CONSOLIDATED INVOICE - NOV 2011 TRAVEL AND ACCOMMODATION 16 TO 30 NOV11,DE21 6BF,Admin
Food Standards Agency,Food Standards Agency,19/12/2011,Travel UK ,Hygiene & Microbiology Division HoD,Capita Business Travel Ltd,LI348559,106.90,CONSOLIDATED INVOICE - NOV 2011 TRAVEL AND ACCOMMODATION 16 TO 30 NOV11,DE21 6BF,Admin
Food Standards Agency,Food Standards Agency,19/12/2011,International Travel,Hygiene & Microbiology Division HoD,Capita Business Travel Ltd,LI348559,197.50,CONSOLIDATED INVOICE - NOV 2011 TRAVEL AND ACCOMMODATION 16 TO 30 NOV11,DE21 6BF,Admin
Food Standards Agency,Food Standards Agency,19/12/2011,Travel UK ,Food Production Branch,Capita Business Travel Ltd,LI348559,263.50,CONSOLIDATED INVOICE - NOV 2011 TRAVEL AND ACCOMMODATION 16 TO 30 NOV11,DE21 6BF,Admin
Food Standards Agency,Food Standards Agency,19/12/2011,Travel UK ,EU Regulatory Reform Branch,Capita Business Travel Ltd,LI348559,290.40,CONSOLIDATED INVOICE - NOV 2011 TRAVEL AND ACCOMMODATION 16 TO 30 NOV11,DE21 6BF,Admin
Food Standards Agency,Food Standards Agency,19/12/2011,Travel UK ,Food Hygiene Policy Branch,Capita Business Travel Ltd,LI348559,132.60,CONSOLIDATED INVOICE - NOV 2011 TRAVEL AND ACCOMMODATION 16 TO 30 NOV11,DE21 6BF,Admin
Food Standards Agency,Food Standards Agency,19/12/2011,Travel UK ,Foodborne Diseases Branch,Capita Business Travel Ltd,LI348559,259.82,CONSOLIDATED INVOICE - NOV 2011 TRAVEL AND ACCOMMODATION 16 TO 30 NOV11,DE21 6BF,Admin
Food Standards Agency,Food Standards Agency,19/12/2011,International Travel,Foodborne Diseases Branch,Capita Business Travel Ltd,LI348559,373.25,CONSOLIDATED INVOICE - NOV 2011 TRAVEL AND ACCOMMODATION 16 TO 30 NOV11,DE21 6BF,Admin
Food Standards Agency,Food Standards Agency,19/12/2011,International Travel,Animal Feed Branch,Capita Business Travel Ltd,LI348559,780.75,CONSOLIDATED INVOICE - NOV 2011 TRAVEL AND ACCOMMODATION 16 TO 30 NOV11,DE21 6BF,Admin
Food Standards Agency,Food Standards Agency,19/12/2011,International Travel,Animal Feed Branch,Capita Business Travel Ltd,LI348559,"1,116.18",CONSOLIDATED INVOICE - NOV 2011 TRAVEL AND ACCOMMODATION 16 TO 30 NOV11,DE21 6BF,Admin
Food Standards Agency,Food Standards Agency,19/12/2011,Travel UK ,Additives,Capita Business Travel Ltd,LI348559,47.39,CONSOLIDATED INVOICE - NOV 2011 TRAVEL AND ACCOMMODATION 16 TO 30 NOV11,DE21 6BF,Admin
Food Standards Agency,Food Standards Agency,19/12/2011,International Travel,Additives,Capita Business Travel Ltd,LI348559,467.50,CONSOLIDATED INVOICE - NOV 2011 TRAVEL AND ACCOMMODATION 16 TO 30 NOV11,DE21 6BF,Admin
Food Standards Agency,Food Standards Agency,19/12/2011,Postal charges,Additives,Capita Business Travel Ltd,LI348559,8.00,CONSOLIDATED INVOICE - NOV 2011 TRAVEL AND ACCOMMODATION 16 TO 30 NOV11,DE21 6BF,Admin
Food Standards Agency,Food Standards Agency,19/12/2011,Travel UK ,Food Policy Strategy HoD,Capita Business Travel Ltd,LI348559,"2,224.70",CONSOLIDATED INVOICE - NOV 2011 TRAVEL AND ACCOMMODATION 16 TO 30 NOV11,DE21 6BF,Admin
Food Standards Agency,Food Standards Agency,19/12/2011,Travel UK ,Planning and Performance,Capita Business Travel Ltd,LI348559,707.90,CONSOLIDATED INVOICE - NOV 2011 TRAVEL AND ACCOMMODATION 16 TO 30 NOV11,DE21 6BF,Admin
Food Standards Agency,Food Standards Agency,19/12/2011,Travel UK ,Food Policy Private Office,Capita Business Travel Ltd,LI348559,492.80,CONSOLIDATED INVOICE - NOV 2011 TRAVEL AND ACCOMMODATION 16 TO 30 NOV11,DE21 6BF,Admin
Food Standards Agency,Food Standards Agency,19/12/2011,International Travel,Food Policy Private Office,Capita Business Travel Ltd,LI348559,477.50,CONSOLIDATED INVOICE - NOV 2011 TRAVEL AND ACCOMMODATION 16 TO 30 NOV11,DE21 6BF,Admin
Food Standards Agency,Food Standards Agency,19/12/2011,Travel UK ,Finance Director & Branch,Capita Business Travel Ltd,LI348559,971.80,CONSOLIDATED INVOICE - NOV 2011 TRAVEL AND ACCOMMODATION 16 TO 30 NOV11,DE21 6BF,Admin
Food Standards Agency,Food Standards Agency,19/12/2011,Travel UK ,HR,Capita Business Travel Ltd,LI348559,"2,369.10",CONSOLIDATED INVOICE - NOV 2011 TRAVEL AND ACCOMMODATION 16 TO 30 NOV11,DE21 6BF,Admin
Food Standards Agency,Food Standards Agency,19/12/2011,Travel UK ,Procurement,Capita Business Travel Ltd,LI348559,"1,213.10",CONSOLIDATED INVOICE - NOV 2011 TRAVEL AND ACCOMMODATION 16 TO 30 NOV11,DE21 6BF,Admin
Food Standards Agency,Food Standards Agency,19/12/2011,Subsistence - Hospitality ,Procurement,Capita Business Travel Ltd,LI348559,"5,578.51",CONSOLIDATED INVOICE - NOV 2011 TRAVEL AND ACCOMMODATION 16 TO 30 NOV11,DE21 6BF,Admin
Food Standards Agency,Food Standards Agency,19/12/2011,Travel UK ,IT HoD,Capita Business Travel Ltd,LI348559,"1,254.80",CONSOLIDATED INVOICE - NOV 2011 TRAVEL AND ACCOMMODATION 16 TO 30 NOV11,DE21 6BF,Admin
Food Standards Agency,Food Standards Agency,19/12/2011,Travel UK ,IT Service Delivery,Capita Business Travel Ltd,LI348559,40.90,CONSOLIDATED INVOICE - NOV 2011 TRAVEL AND ACCOMMODATION 16 TO 30 NOV11,DE21 6BF,Admin
Food Standards Agency,Food Standards Agency,19/12/2011,Rent & Management Charges - Regions,Security & Estates,Dekay Management Ltd,1283,"1,513,314.85",PO 402306 ADVANCE RENT FOR PERIOD 25/12/11 TO 24/03/12,HA2 6EH,Admin
Food Standards Agency,Food Standards Agency,19/12/2011,Rent & Management Charges - Regions,Security & Estates,Dekay Management Ltd,1283,"302,662.97",PO 402306 ADVANCE RENT FOR PERIOD 25/12/11 TO 24/03/12,HA2 6EH,Admin
Food Standards Agency,Food Standards Agency,19/12/2011,Travel UK ,Internal Audit,Capita Business Travel Ltd,LI348559,657.90,CONSOLIDATED INVOICE - NOV 2011 TRAVEL AND ACCOMMODATION 16 TO 30 NOV11,DE21 6BF,Admin
Food Standards Agency,Food Standards Agency,19/12/2011,Travel UK ,FSA Ops Cluster 2,Capita Business Travel Ltd,LI348559,89.50,CONSOLIDATED INVOICE - NOV 2011 TRAVEL AND ACCOMMODATION 16 TO 30 NOV11,DE21 6BF,Programme
Food Standards Agency,Food Standards Agency,19/12/2011,Travel UK ,FSA Ops Cluster 3,Capita Business Travel Ltd,LI348559,163.45,CONSOLIDATED INVOICE - NOV 2011 TRAVEL AND ACCOMMODATION 16 TO 30 NOV11,DE21 6BF,Programme
Food Standards Agency,Food Standards Agency,19/12/2011,Travel UK ,FSA Ops Cluster 10,Capita Business Travel Ltd,LI348559,249.90,CONSOLIDATED INVOICE - NOV 2011 TRAVEL AND ACCOMMODATION 16 TO 30 NOV11,DE21 6BF,Programme
Food Standards Agency,Food Standards Agency,19/12/2011,Travel UK ,FSA Ops Cluster 14,Capita Business Travel Ltd,LI348559,274.70,CONSOLIDATED INVOICE - NOV 2011 TRAVEL AND ACCOMMODATION 16 TO 30 NOV11,DE21 6BF,Programme
Food Standards Agency,Food Standards Agency,19/12/2011,Travel UK ,FSA Ops Cluster 16,Capita Business Travel Ltd,LI348559,61.10,CONSOLIDATED INVOICE - NOV 2011 TRAVEL AND ACCOMMODATION 16 TO 30 NOV11,DE21 6BF,Programme
Food Standards Agency,Food Standards Agency,19/12/2011,Travel UK ,FSA Ops Cluster 18,Capita Business Travel Ltd,LI348559,265.20,CONSOLIDATED INVOICE - NOV 2011 TRAVEL AND ACCOMMODATION 16 TO 30 NOV11,DE21 6BF,Programme
Food Standards Agency,Food Standards Agency,19/12/2011,Travel UK ,FSA Ops Cluster 20,Capita Business Travel Ltd,LI348559,156.50,CONSOLIDATED INVOICE - NOV 2011 TRAVEL AND ACCOMMODATION 16 TO 30 NOV11,DE21 6BF,Programme
Food Standards Agency,Food Standards Agency,19/12/2011,Travel UK ,FSA Ops Cluster 25,Capita Business Travel Ltd,LI348559,186.80,CONSOLIDATED INVOICE - NOV 2011 TRAVEL AND ACCOMMODATION 16 TO 30 NOV11,DE21 6BF,Programme
Food Standards Agency,Food Standards Agency,19/12/2011,Travel UK ,FSA Ops Cluster 27,Capita Business Travel Ltd,LI348559,-70.00,CONSOLIDATED INVOICE - NOV 2011 TRAVEL AND ACCOMMODATION 16 TO 30 NOV11,DE21 6BF,Programme
Food Standards Agency,Food Standards Agency,19/12/2011,Travel UK ,FSA Ops Cluster 28,Capita Business Travel Ltd,LI348559,107.40,CONSOLIDATED INVOICE - NOV 2011 TRAVEL AND ACCOMMODATION 16 TO 30 NOV11,DE21 6BF,Programme
Food Standards Agency,Food Standards Agency,19/12/2011,Travel UK ,FSA Ops Cluster 29,Capita Business Travel Ltd,LI348559,104.00,CONSOLIDATED INVOICE - NOV 2011 TRAVEL AND ACCOMMODATION 16 TO 30 NOV11,DE21 6BF,Programme
Food Standards Agency,Food Standards Agency,19/12/2011,Travel UK ,FSA Ops Cluster 30,Capita Business Travel Ltd,LI348559,171.80,CONSOLIDATED INVOICE - NOV 2011 TRAVEL AND ACCOMMODATION 16 TO 30 NOV11,DE21 6BF,Programme
Food Standards Agency,Food Standards Agency,19/12/2011,Travel UK ,FSA Ops Cluster 31,Capita Business Travel Ltd,LI348559,85.80,CONSOLIDATED INVOICE - NOV 2011 TRAVEL AND ACCOMMODATION 16 TO 30 NOV11,DE21 6BF,Programme
Food Standards Agency,Food Standards Agency,19/12/2011,Travel UK ,FSA Ops Cluster 32,Capita Business Travel Ltd,LI348559,45.20,CONSOLIDATED INVOICE - NOV 2011 TRAVEL AND ACCOMMODATION 16 TO 30 NOV11,DE21 6BF,Programme
Food Standards Agency,Food Standards Agency,19/12/2011,Travel UK ,FSA Ops Cluster 33,Capita Business Travel Ltd,LI348559,29.10,CONSOLIDATED INVOICE - NOV 2011 TRAVEL AND ACCOMMODATION 16 TO 30 NOV11,DE21 6BF,Programme
Food Standards Agency,Food Standards Agency,19/12/2011,Travel UK ,FSA Ops Cluster 37,Capita Business Travel Ltd,LI348559,132.00,CONSOLIDATED INVOICE - NOV 2011 TRAVEL AND ACCOMMODATION 16 TO 30 NOV11,DE21 6BF,Programme
Food Standards Agency,Food Standards Agency,21/12/2011,Programme Evidence & Research Expenditure,Food Production Branch,Campden Bri,20038783,"68,956.23",PO 404562 DELIVERABLE 2 REPORT 2 ON DATA FROM INDUSTRY PUBLISHED STUDIES AND PRELIMINARY TRIALS,GL55 6LD,Programme
Food Standards Agency,Food Standards Agency,21/12/2011,Programme Evidence & Research Expenditure,Food Production Branch,Campden Bri,20038783,985.92,PO 404562 DELIVERABLE 2 REPORT 2 ON DATA FROM INDUSTRY PUBLISHED STUDIES AND PRELIMINARY TRIALS,GL55 6LD,Programme
Food Standards Agency,Food Standards Agency,21/12/2011,Programme Evidence & Research Expenditure,Food Production Branch,Campden Bri,20038783,985.92,PO 404562 DELIVERABLE 2 REPORT 2 ON DATA FROM INDUSTRY PUBLISHED STUDIES AND PRELIMINARY TRIALS,GL55 6LD,Programme
Food Standards Agency,Food Standards Agency,21/12/2011,Programme Evidence & Research Expenditure,Food Production Branch,Campden Bri,20038783,14.10,PO 404562 DELIVERABLE 2 REPORT 2 ON DATA FROM INDUSTRY PUBLISHED STUDIES AND PRELIMINARY TRIALS,GL55 6LD,Programme
Food Standards Agency,Food Standards Agency,21/12/2011,Programme Evidence & Research Expenditure,Allergens,Kings College London,RGI11120237,"41,920.00",PO 400797 RANDOMISED CONTROLLED TRIAL OF EARLY INTRODUCTION OF ALLERGENIC FOODS TO INDUCE TOLERANCE IN INFANTS,SE1 3QD,Programme
Food Standards Agency,Food Standards Agency,21/12/2011,Programme Evidence & Research Expenditure,Allergens,Kings College London,RGI11120550,"41,920.00",PO 400797 RANDOMISED CONTROLLED TRIAL OF EARLY INTRODUCTION OF ALLERGENIC FOODS TO INDUCE INTOLERANCE IN INFANTS,SE1 3QD,Programme
Food Standards Agency,Food Standards Agency,21/12/2011,Programme Evidence & Research Expenditure,Allergens,Kings College London,RGI11120999,"41,920.00",PO 400797 RANDOMISED CONTROLLED TRIALS OF EARLY INTRODUCTION OF ALLERGENIC FOODS,SE1 3QD,Programme
Food Standards Agency,Food Standards Agency,28/12/2011,Project Programme expenditure,Comms Directors Office,Coi,737917,"49,560.53",PO 405503 4FOOD MEDIA SPONSORSHIP COST M4C COMMISSION,SE1 7DU,Programme
Food Standards Agency,Food Standards Agency,28/12/2011,Project Programme expenditure,Comms Directors Office,Coi,737917,"9,912.11",PO 405503 4FOOD MEDIA SPONSORSHIP COST M4C COMMISSION,SE1 7DU,Programme
Food Standards Agency,Food Standards Agency,28/12/2011,Project Programme expenditure,Comms Directors Office,Coi,737917,45.40,PO 405503 4FOOD MEDIA SPONSORSHIP COST M4C COMMISSION,SE1 7DU,Programme
Food Standards Agency,Food Standards Agency,28/12/2011,Project Programme expenditure,Comms Directors Office,Coi,737917,9.08,PO 405503 4FOOD MEDIA SPONSORSHIP COST M4C COMMISSION,SE1 7DU,Programme
Food Standards Agency,Food Standards Agency,28/12/2011,Project Programme expenditure,Delivery,C E F A S,8001583,"62,836.51",PO 404228 FY 11/12/ NOV 2011,NR33 0HT,Programme
Food Standards Agency,Food Standards Agency,30/12/2011,Service charges,Security & Estates,G4s Integrated Services (Uk) Ltd,M5293,"26,138.27",PO 402692 SERVICE PROVISION ON CONTRACT PAU229 NOVEMBER 2011,S81 7QF,Admin
Food Standards Agency,Food Standards Agency,30/12/2011,Service charges,Security & Estates,G4s Integrated Services (Uk) Ltd,M5293,"15,150.81",PO 402692 SERVICE PROVISION ON CONTRACT PAU229 NOVEMBER 2011,S81 7QF,Admin
Food Standards Agency,Food Standards Agency,30/12/2011,Service charges,Security & Estates,G4s Integrated Services (Uk) Ltd,M5293,"2,760.55",PO 402692 SERVICE PROVISION ON CONTRACT PAU229 NOVEMBER 2011,S81 7QF,Admin
Food Standards Agency,Food Standards Agency,30/12/2011,Office machinery: hire,Security & Estates,G4s Integrated Services (Uk) Ltd,M5293,"3,244.00",PO 402692 SERVICE PROVISION ON CONTRACT PAU229 NOVEMBER 2011,S81 7QF,Admin
Food Standards Agency,Food Standards Agency,30/12/2011,Security,Security & Estates,G4s Integrated Services (Uk) Ltd,M5293,"17,623.33",PO 402692 SERVICE PROVISION ON CONTRACT PAU229 NOVEMBER 2011,S81 7QF,Admin
"Date Run: 04-JAN-12 10.57.00 AM --- Company Code : '17, 21' , Payment Start Date : '01-DEC-2011' , Payment End Date : '31-DEC-2011'",,,,,,,,,,
